{"text_format":"1","workbook":"xlsx","n_sheets":4,"sheets":["Начало","Опросный лист","Справочник","О Компании"],"not_rendered":{"charts":0,"images":20,"macros":1,"external_links":0,"defined_names":24,"comments":0,"pivot_tables":0},"unopened":[],"bounds":{"document_bytes":16777216,"sheet_cells":100000,"rows_first":2000,"rows_last":500,"rows_between":2000,"halvings":0,"cell_chars":16384,"cell_head_chars":4096},"cells_cut":0,"cells_raw":0,"read":"whole","date_system":"1900"}

{"sheet":"Начало","index":0,"n_rows":44,"n_cols":14,"rows_kept":44,"cut":false,"hidden":false,"merged":[[31,1,31,23],[20,0,20,23],[22,1,22,23],[29,1,29,23],[33,1,33,23],[35,1,35,23],[24,1,24,23],[41,1,41,23],[43,1,44,23],[5,12,5,15],[6,1,6,2],[11,1,11,23],[12,1,12,23],[13,1,13,23],[16,5,18,18],[36,1,39,7],[36,13,39,23],[14,1,14,23],[8,1,8,23],[9,1,9,23],[26,1,26,23],[27,1,27,23],[28,1,28,23]]}
[]
[]
[null,null,null,"ООО \"Трансформер\""]
[null,null,null,"142105, Россия, Московская обл., г. Подольск, ул. Б. Серпуховская, д. 43, стр. 11, пом. 6"]
[null,null,null,"Телефон: +7 (499) 941-08-55 "]
[null,null,null,"Факс: +7 (499) 941-08-55 "]
[null,null,null,"E-mail: info@transformator.ru"]
[]
[null,"ОПРОСНЫЙ ЛИСТ"]
[null,"СУХОЙ СИЛОВОЙ ТРАНСФОРМАТОР"]
[]
[null,"Мы благодарим Вас за то,  что Вы проявили интерес к продукции бренда \"Трансформер\"."]
[null,"Надеемся, что Вы по достоинству оцените качество и надёжность нашей продукции."]
[null,"Мы позаботились об удобстве нашей совместной работы."]
[null,"Процесс заполнения данного опросного листа (ОЛ) займёт всего несколько минут."]
[]
[null,null,null,null,null,"НАЧАТЬ ЗАПОЛНЕНИЕ"]
[]
[]
[]
["Рекомендации по заполнению. Уважаемые коллеги!"]
[]
[1,"Сделайте, пожалуйста, сразу копию с исходного файла через \"Сохранить как…\" для того, чтобы сохранить незаполненный оригинал ОЛ, т.к. некоторые свойства файла после заполнения стираются."]
[]
[2,"Обратите, пожалуйста, внимание на подсвечивания ячеек для ввода: они меняют свой цвет в зависимости от наличия введённых данных."]
[]
[3,"Правило активности: мы настоятельно рекомендуем заполнять все ячейки, чтобы специалисты               ООО \"Трансформер\" могли как можно точнее сформулировать техническое и ценовое предложение:"]
["-","в случае, если на момент заполнения ОЛ нет данных по какому-либо параметру - укажите \"н/д\";"]
["-","в случае, если какой-либо параметр принципиально не заполняется или нет необходимости в его заполнении - ставьте прочерк;"]
["-","в остальных случаях руководствуйтесь всплывающими подсказками и вариантами выбора, предложенными системой."]
[]
[4,"В случае наличия приложений и ссылок на техническое задание или особые требования - перечислите их в соответствующем пункте ОЛ и приложите к письму."]
[]
[5,"Перед отправкой заполненного опросного листа рекомендуем сохранить его в неизменяемом формате (например, PDF) или пометить документ, как окончательный. "]
[]
[6,"В случае возникновения вопросов по заполнению ОЛ или по параметрам трансформаторов - вы можете свзяться с менеджерами компании."]
[null,"НАЧАТЬ ЗАПОЛНЕНИЕ",null,null,null,null,null,null,null,null,null,null,null,"ИНФОРМАЦИЯ О ГРУППЕ КОМПАНИЙ \"ТРАНСФОРМЕР"]
[]
[]
[]
[]
[null,"Опросный лист совместим с программой Microsoft Excel, начиная с версии 2003 и не содержит элементов, способных нанести вред оборудованию и данным пользователя."]
[]
[null,"В связи с постоянным расширением номенклатуры и совершенствованием продукции, ООО \"Трансформер\"  оставляет за собой право вносить изменения в исходный файл опросного листа без уведомления."]

{"sheet":"Опросный лист","index":1,"n_rows":93,"n_cols":39,"rows_kept":93,"cut":false,"hidden":false,"merged":[[75,8,75,17],[79,23,79,28],[91,22,91,34],[69,2,69,39],[85,2,85,39],[79,29,79,39],[81,29,81,39],[77,8,77,39],[81,23,81,28],[75,23,75,28],[81,8,81,17],[79,8,79,17],[91,38,92,39],[63,11,63,14],[63,15,63,16],[73,8,73,39],[71,8,71,39],[75,29,75,39],[83,8,83,39],[92,23,92,33],[92,0,92,21],[91,0,91,21],[56,2,56,39],[63,2,63,4],[65,2,65,39],[67,1,67,3],[67,4,67,14],[67,15,67,26],[58,1,61,39],[66,1,66,12],[67,27,67,39],[49,23,49,28],[50,22,50,39],[49,8,49,17],[51,8,51,17],[53,8,53,17],[47,2,47,17],[49,2,49,7],[51,2,51,7],[53,2,53,7],[35,25,35,39],[11,2,11,39],[53,38,54,38],[53,22,54,37],[28,29,28,39],[35,1,35,17],[46,42,46,47],[51,22,51,26],[51,27,51,36],[51,37,51,39],[49,29,49,39],[47,23,47,39],[28,2,28,7],[33,14,34,16],[33,1,34,13],[15,8,15,17],[24,23,24,28],[28,23,28,28],[33,22,34,37],[31,2,31,39],[36,24,36,39],[9,23,9,28],[13,23,13,28],[15,23,15,28],[17,23,17,28],[19,23,19,28],[17,29,17,39],[19,29,19,39],[15,29,15,39],[10,20,10,24],[26,8,26,17],[24,29,24,39],[26,29,26,39],[22,23,22,39],[26,23,26,28],[33,38,34,38],[28,8,28,17],[13,8,13,17],[38,29,38,39],[41,1,44,17],[38,23,38,28],[41,22,44,39],[38,8,38,17],[36,2,36,17],[17,8,17,17],[19,8,19,17],[24,8,24,17],[87,8,87,17],[87,29,87,39],[87,23,87,28],[7,9,7,16],[7,29,7,36],[7,23,7,27],[9,29,9,39],[63,22,63,25],[63,26,63,28],[13,29,13,39]]}
[]
[null,null,null,"ООО \"Трансформер\" "]
[null,null,null,"142105, Россия, Московская обл., г. Подольск, ул. Б. Серпуховская, д. 43, стр. 11, пом. 6"]
[null,null,null,"Телефон: +7 (499) 941-08-55 "]
[null,null,null,"Факс: +7 (499) 941-08-55 "]
[null,null,null,"E-mail: info@transformator.ru"]
[]
[null,null,"ОПРОСНЫЙ ЛИСТ:",null,null,null,null,null,"№",null,null,null,null,null,null,null,null,null,null,null,null,null,null,"№ СЧЕТА",null,null,null,null,"№"]
[]
[null,null,"ТРАНСФОРМАТОР СУХОЙ СИЛОВОЙ",null,null,null,null,null,null,null,null,null,null,null,null,null,null,null,null,null,null,null,{"$f":"IF(AD10<>\"\",\"V\",\">\")","v":">"},"ТИП:"]
[]
[null,1,"Электрические параметры:"]
[]
[null,{"$f":"IF(I14<>\"\",\"V\",\">\")","v":">"},"Мощность, кВА",null,null,null,null,null,null,null,null,null,null,null,null,null,null,null,null,null,null,null,{"$f":"IF(AI14<>\"\",\"V\",\">\")","v":">"},"Напряжение КЗ, %"]
[]
[null,{"$f":"IF(I16<>\"\",\"V\",\">\")","v":">"},"Напряжение ВН, кВ",null,null,null,null,null,null,null,null,null,null,null,null,null,null,null,null,null,null,null,{"$f":"IF(AD16<>\"\",\"V\",\">\")","v":">"},"Регулирование напряжения"]
[]
[null,{"$f":"IF(I18<>\"\",\"V\",\">\")","v":">"},"Напряжение НН, кВ",null,null,null,null,null,null,null,null,null,null,null,null,null,null,null,null,null,null,null,{"$f":"IF(AD18<>\"\",\"V\",\">\")","v":">"},"Глубина регулирования, %"]
[]
[null,{"$f":"IF(I20<>\"\",\"V\",\">\")","v":">"},"Схема и группа соединения:",null,null,null,null,null,null,null,null,null,null,null,null,null,null,null,null,null,null,null,{"$f":"IF(AD20<>\"\",\"V\",\">\")","v":">"},"Частота сети, Гц"]
[]
[]
[null,2,"Конструктивное исполнение:",null,null,null,null,null,null,null,null,null,null,null,null,null,null,null,null,null,null,null,3,"Климатические особенности:"]
[]
[null,{"$f":"IF(I25<>\"\",\"V\",\">\")","v":">"},"Материал обмоток:",null,null,null,null,null,null,null,null,null,null,null,null,null,null,null,null,null,null,null,{"$f":"IF(AD25<>\"\",\"V\",\">\")","v":">"},"Климатическое исполнение:"]
[]
[null,{"$f":"IF(I27<>\"\",\"V\",\">\")","v":">"},"Кожух (степень защиты)",null,null,null,null,null,null,null,null,null,null,null,null,null,null,null,null,null,null,null,{"$f":"IF(AD27<>\"\",\"V\",\">\")","v":">"},"Высота установки, м"]
[]
[null,{"$f":"IF(I29<>\"\",\"V\",\">\")","v":">"},"Класс нагревостойкости изоляции",null,null,null,null,null,null,null,null,null,null,null,null,null,null,null,null,null,null,null,{"$f":"IF(AD29<>\"\",\"V\",\">\")","v":">"},"Сейсмостойкость по MSK-64"]
[]
[]
[null,4,"Исполнение вводов, количество и эскиз трансформаторов"]
[null,null,null,null,null,null,null,null,null,null,null,null,null,null,null,null,null,null,null,null,null,null,"Для двухтрансформаторных подстанций 2КТП:"]
[null,"Количество c исполнением вводов Т1:",null,null,null,null,null,null,null,null,null,null,null,null,0,null,null,null,null,null,null,null,"Количество c исполнением вводов Т2:",null,null,null,null,null,null,null,null,null,null,null,null,null,null,null,0]
[]
[null,{"$f":"IF(AND(C37<>\"Не выбрано\",O34=0),\"Укажите количество трансформаторов\",\"\")","v":"Укажите количество трансформаторов"},null,null,null,null,null,null,null,null,null,null,null,null,null,null,null,null,null,null,null,null,null,null,null,{"$f":"IF(AND(Y37<>\"Не выбрано\",AM34=0),\"Укажите количество Т2, если требуется парный трансформатор\",\"\")","v":"Укажите количество Т2, если требуется парный трансформатор"}]
[null,"Т1:",null,null,null,null,null,null,null,null,null,null,null,null,null,null,null,null,null,null,null,null,"Т2:"]
[]
[null,{"$f":"IF(I39<>\"\",\"V\",\">\")","v":">"},"Способ ввода ВН, НН (с исполнением Т1)",null,null,null,null,null,null,null,null,null,null,null,null,null,null,null,null,null,null,null,{"$f":"IF(AH39<>\"\",\"V\",\">\")","v":">"},"Способ ввода ВН, НН (с исполнением Т2)"]
[]
[]
[]
[null,null,null,null,null,null,null,null,null,null,null,null,null,null,null,null,null,null,null,null,null,{"$f":"IF(AM34>0,\"+\",\"\")","v":""}]
[]
[]
[]
[]
[null,5,"Дополнительные параметры",null,null,null,null,null,null,null,null,null,null,null,null,null,null,null,null,null,null,null,6,"Дополнительная комплектация:"]
[]
[null,{"$f":"IF(I50<>\"\",\"V\",\">\")","v":">"},"Наличие и тип БКТ",null,null,null,null,null,null,null,null,null,null,null,null,null,null,null,null,null,null,null,{"$f":"IF(AD50<>\"\",\"V\",\">\")","v":">"},"Наличие и тип ШТЗ"]
[null,null,null,null,null,null,null,null,null,null,null,null,null,null,null,null,null,null,null,null,null,null,"Необходимое выделить жирным шрифтом или подчеркнуть:"]
[null,{"$f":"IF(I52<>\"\",\"V\",\">\")","v":">"},"Степень сборки кожуха",null,null,null,null,null,null,null,null,null,null,null,null,null,null,null,null,null,null,null,"Принудительная вентиляция",null,null,null,null,"Поворотные катки",null,null,null,null,null,null,null,null,null,"Виброгасители"]
[]
[null,{"$f":"IF(I54<>\"\",\"V\",\">\")","v":">"},"Тип упаковки",null,null,null,null,null,null,null,null,null,null,null,null,null,null,null,null,null,null,null,"Количество температурных датчиков РТ-100:",null,null,null,null,null,null,null,null,null,null,null,null,null,null,null,0]
[]
[]
[null,7,"Дополнительные требования к параметрам, условиям работы и комплектации:"]
[]
[]
[]
[]
[]
[]
[null,null,"Всего трансформаторов: ",null,null,null,null,null,null,null,null,{"$f":"O34+AM34","v":0},null,null,null,"шт.",null,null,null,null,null,null,"Тип:",null,null,null,{"$f":"AD10","v":0}]
[]
[null,8,"Требуемые данные по запросу"]
[null,"Необходимое выделить жирным шрифтом или подчеркнуть:"]
[null,"Стоимость",null,null,"Условия и сроки поставки",null,null,null,null,null,null,null,null,null,null,"Техническая спецификация",null,null,null,null,null,null,null,null,null,null,null,"Габаритный чертеж"]
[]
[null,9,"Сведения о клиенте:"]
[]
[null,{"$f":"IF(I72=\"\",\">\",\"V\")","v":">"},"Наименование организации:"]
[]
[null,{"$f":"IF(I74=\"\",\">\",\"V\")","v":">"},"Адрес организации:"]
[]
[null,{"$f":"IF(I76=\"\",\">\",\"V\")","v":">"},"ИНН:",null,null,null,null,null,null,null,null,null,null,null,null,null,null,null,null,null,null,null,{"$f":"IF(AD76=\"\",\">\",\"V\")","v":">"},"КПП:"]
[]
[null,{"$f":"IF(I78=\"\",\">\",\"V\")","v":">"},"Контактное лицо (ФИО), должность:"]
[]
[null,{"$f":"IF(I80=\"\",\">\",\"V\")","v":">"},"Телефон:",null,null,null,null,null,null,null,null,null,null,null,null,null,null,null,null,null,null,null,{"$f":"IF(AD80=\"\",\">\",\"V\")","v":">"},"E-mail:"]
[]
[null,{"$f":"IF(I82=\"\",\">\",\"V\")","v":">"},"Сфера применения тр-ра:",null,null,null,null,null,null,null,null,null,null,null,null,null,null,null,null,null,null,null,{"$f":"IF(AD82=\"\",\">\",\"V\")","v":">"},"Срок поставки:"]
[]
[null,{"$f":"IF(I84=\"\",\">\",\"V\")","v":">"},"Объект поставки:"]
[]
[null,null,"СОГЛАСОВАНО"]
[]
[null,{"$f":"IF(I88=\"\",\">\",\"V\")","v":">"},"Поставщик:",null,null,null,null,null,null,null,null,null,null,null,null,null,null,null,null,null,null,null,{"$f":"IF(AD88=\"\",\">\",\"V\")","v":">"},"Покупатель:"]
[]
[null,null,null,null,null,null,null,null,null,null,null,null,null,null,"М.П.",null,null,null,null,null,null,null,null,null,null,null,null,null,null,null,null,null,null,null,null,null,null,null,"М.П."]
[]
["          Опросный лист отправлять по факсу:  +7 (499) 941-08-55 , либо на электронную почту",null,null,null,null,null,null,null,null,null,null,null,null,null,null,null,null,null,null,null,null,null,"info@transformator.ru",null,null,null,null,null,null,null,null,null,null,null,null,null,null,null,"Версия ОЛ: 3.0.0"]
["С Вами свяжется наш менеджер для обсуждения деталей по заявке."]

{"sheet":"Справочник","index":2,"n_rows":13,"n_cols":2,"rows_kept":13,"cut":false,"hidden":true,"merged":[]}
["Модель","Фото"]
["ВН - верхнее, НН - верхнее"]
["ВН - правое, НН - левое"]
["ВН - верхнее, НН - левое"]
["ВН - верхнее, НН - нижнее"]
["ВН - верхнее, НН - правое"]
["ВН - левое, НН - правое"]
["ВН - нижнее, НН - верхнее"]
["ВН - нижнее, НН - левое"]
["ВН - нижнее, НН - нижнее"]
["ВН - нижнее, НН - правое"]
["<<<Другое исполнение>>>"]
["Не выбрано"]

{"sheet":"О Компании","index":3,"n_rows":10,"n_cols":7,"rows_kept":10,"cut":false,"hidden":false,"merged":[[9,1,9,2],[0,3,0,6],[1,3,1,6],[7,1,7,6],[6,1,6,6],[5,1,5,6],[2,1,2,6],[0,1,1,2],[3,2,3,6]]}
[null,"О КОМПАНИИ",null,"ВЕРНУТЬСЯ К НАЧАЛУ"]
[null,null,null,"ПЕРЕЙТИ К ОПРОСНОМУ ЛИСТУ"]
[]
[null,null,"Завод-изготовитель\"Трансформер\" занимает лидирующие позиции среди российских производителей электротехнического оборудования. По наращиванию производства и темпам модернизации бренд \"Трансформер\"  - один из наиболее динамично развивающихся в отрасли."]
[]
[null,"Сотрудничество \"Трансформер\" с ключевыми российскими предприятиями позволяет эффективно реализовывать правительственную программу импортозамещения и энергосбережения."]
[null,"Разработки компании \"Трансформер\" позволяют уже сейчас производить оборудование, способствующее снижению энергозатрат предприятий."]
[null,"ООО \"Трансформер\" обладает всеми необходимыми ресурсами для возможности реализации проекта строительства подстанции \"под ключ\" с использованием современных решений в минимальные сроки, отвечающей всем требованиям нормативной документации."]
[]
[null,"Производство\nсухих трансформаторов",null,null,"Производство\nреакторного оборудования",null,"Производство силовых \nмасляных трансформаторов"]